fUSD/lending_fUSD_20250312
["ID","MTS","AMOUNT","RATE_DAILY","PERIOD"]
[355989598,1741773052254,-900.0,0.00019,20]
[355989599,1741773052264,-961.61,0.00019,2]
[355989600,1741773052275,-500.0,0.00019,2]
[355989601,1741773052285,-500.0,0.00019,2]
[355989602,1741773052295,-500.0,0.00019,2]
[355989603,1741773052305,-500.0,0.00019,2]
[355989604,1741773052316,-77386.20267469,0.00019,2]
[355989605,1741773052326,-200.00648524,0.00019,15]
[355989606,1741773052336,-800.0,0.00019,2]
[355989607,1741773052346,-341.92746946,0.0001901,7]
[355989608,1741773052356,-1000.0,0.0001902,2]
[355989609,1741773052366,-500.0,0.00019178,2]
[355989610,1741773052376,-500.0,0.00019178,2]
[355989611,1741773052387,-500.0,0.00019178,2]
[355989612,1741773052404,-500.0,0.00019178,2]
[355989613,1741773052414,-500.0,0.00019178,2]
[355989614,1741773052425,-500.0,0.00019178,2]
[355989615,1741773052435,-500.0,0.00019178,2]
[355989616,1741773052444,-500.0,0.00019178,2]
[355989617,1741773052454,-500.0,0.00019178,2]
[355989618,1741773052464,-500.0,0.00019178,2]
[355989619,1741773052474,-500.0,0.00019178,2]
[355989620,1741773052484,-500.0,0.00019178,2]
[355989621,1741773052493,-500.0,0.00019178,2]
[355989622,1741773052503,-582.58927263,0.00019178,2]
[355989623,1741773052513,-151.0,0.00019178,2]
[355989624,1741773052523,-265.716087,0.00019178,2]
[355989625,1741773052532,-3240.09,0.00019178,2]
[355989626,1741773052542,-1000.0,0.00019178,2]
[355989627,1741773052551,-1000.0,0.00019178,2]
[355989628,1741773052561,-1000.0,0.00019178,2]
[355989629,1741773052571,-772.20408,0.00019178,2]
[355989630,1741773052581,-160.24895188,0.00019178,2]
[355989631,1741773052591,-1000.0,0.00019178,2]
[355989632,1741773052602,-500.0,0.000192,2]
[355989633,1741773052611,-1446.93,0.00019205,2]
[355989634,1741773052621,-1053.63998808,0.00019295,2]
[355989635,1741773052631,-1035.92,0.00019309,2]
[355989636,1741773052641,-452.0,0.00019317,5]
[355989637,1741773052651,-452.0,0.00019317,5]
[355989638,1741773052661,-453.0,0.00019317,5]
[355989639,1741773052671,-452.0,0.00019317,5]
[355989640,1741773052682,-1335.37118288,0.00019336,2]
[355989641,1741773052691,-1000.0,0.00019452,2]
[355989642,1741773052702,-1000.0,0.00019452,2]
[355989643,1741773052712,-744.75994586,0.00019452,2]
[355989644,1741773052721,-1446.93,0.00019479,2]
[355989645,1741773052732,-727.90250731,0.0001951,2]
[355989646,1741773052741,-8920.2827077,0.00019587,2]
[355989647,1741773052751,-300.0,0.00019599,2]
[355989648,1741773052761,-300.0,0.00019599,2]
[355989649,1741773052771,-223730.78247567,0.000196,2]
[355989650,1741773052781,-3298.02310229,0.0001961,2]
[355989651,1741773052791,-220.99,0.00019658,2]
[355989652,1741773052800,-1446.93,0.00019753,2]
[355989653,1741773052810,-3011.21156186,0.0001987,2]
[355989654,1741773052820,-150.6533202,0.00019873,2]
[355989655,1741773052830,-300.0,0.00019899,2]
[355989656,1741773052840,-4709.95580744,0.000199,3]
[355989657,1741773052849,-1000.0,0.000199,5]
[355989658,1741773052859,-5000.0,0.000199,7]
[355989659,1741773052869,-125766.45061575,0.000199,2]
[355989660,1741773052879,-114018.95336976,0.000199,2]
[355989661,1741773052888,-514.0,0.0001997,2]
[355989662,1741773052899,-4544.0522507,0.00019986,2]
[355989663,1741773052908,-6583.5456913,0.00019986,2]
[355989664,1741773052918,-10018.18485429,0.0001999,2]
[355989665,1741773052929,-3900.80366883,0.0001999,2]
[355989666,1741773052938,-300.0,0.00019999,2]
[355989667,1741773052948,-32662.26779115,0.00019999,2]
[355989668,1741773052957,-8300.0,0.0002,4]
[355989669,1741773052967,-247447.32778077,0.0002,4]
[355989670,1741773052978,-91287.59095959,0.0002,2]
[355989671,1741773052988,-301776.31661459,0.0002,4]
[355989672,1741773052997,-299.02335422,0.0002,2]
[355989673,1741773053007,-10000.0,0.0002,2]
[355989674,1741773053018,-1472.03803944,0.0002,2]
[355989675,1741773053029,-4272.19209487,0.0002,2]
[355989676,1741773053039,-7500.0,0.0002,2]
[355989677,1741773053049,-3842.1002241,0.0002,2]
[355989678,1741773053059,-45836.11726839,0.0002,2]
[355989679,1741773053070,-3950.0,0.0002,2]
[355989680,1741773053080,-1242.64159927,0.0002,2]
[355989681,1741773053090,-11756.49997167,0.0002,2]
[355989682,1741773053100,-7499.952756,0.0002,7]
[355989683,1741773053110,-2219.80040977,0.0002,2]
[355989684,1741773053120,-5101.82857057,0.0002,2]
[355989685,1741773053130,-50000.0,0.0002,2]
[355989686,1741773053140,-1002.70199071,0.0002,2]
[355989687,1741773053150,-1723.85590688,0.0002,2]
[355989688,1741773053160,-96407.00774717,0.0002,4]
[355989689,1741773053171,-2806.400169,0.0002,7]
[355989690,1741773053183,-1426.730169,0.0002,7]
[355989691,1741773053194,-1399.42447222,0.0002,5]
[355989692,1741773053205,-1013.0,0.0002,6]
[355989693,1741773053217,-5622.2595823,0.0002,2]
[355989694,1741773053226,-800.24352348,0.0002,7]
[355989695,1741773053237,-104936.18560002,0.0002,4]
[355989696,1741773053516,-409.18060615,0.0002,3]
[355989697,1741773053527,-197.91967225,0.0002,7]
[355989698,1741773053536,-2794.97262285,0.0002,7]
[355989699,1741773053545,-504.19305713,0.0002,7]
[355989700,1741773053555,-900.0,0.0002,21]
[355989701,1741773053564,-474.12143024,0.0002,10]
[355989702,1741773053574,-381.0,0.0002,2]
[355989703,1741773053583,-205.79,0.0002,2]
[355989704,1741773053593,-33800.0,0.0002,30]
[355989705,1741773053603,-9964.73061819,0.0002,2]
[355989706,1741773053612,-40907.0,0.0002,2]
[355989707,1741773053622,-2000.0,0.0002,2]
[355989708,1741773053631,-4000.0,0.0002,2]
[355989709,1741773053641,-2000.0,0.0002,4]
[355989710,1741773053651,-4925.11518404,0.0002001,2]
[355989711,1741773053660,-8933.41022384,0.0002001,2]
[355989712,1741773053670,-2000.0,0.0002001,2]
[355989713,1741773053681,-1071.63481611,0.00020011,30]
[355989714,1741773053691,-2000.0,0.0002002,2]
[355989715,1741773053700,-1446.93,0.00020027,2]
[355989716,1741773053710,-2013.509703,0.0002003,2]
[355989717,1741773053719,-41815.48843669,0.0002015,2]
[355989718,1741773053728,-1662.53667671,0.0002015,2]
[355989719,1741773053738,-1447.01414382,0.00020301,2]
[355989720,1741773053747,-1100.0,0.00020344,2]
[355989721,1741773053757,-20529.27,0.00020548,2]
[355989722,1741773053766,-205.854049,0.00020548,2]
[355989723,1741773053776,-174.1,0.00020548,2]
[355989724,1741773053785,-157.5982938,0.00020597,2]
[355989725,1741773053795,-21769.62595042,0.000207,2]
[355989726,1741773053804,-152.0,0.00020703,3]
[355989727,1741773053813,-7925.93,0.00020822,2]
[355989728,1741773053823,-152.0,0.00020889,4]
[355989729,1741773053832,-819.49,0.00020971,30]
[355989730,1741773053843,-400.0,0.00021,2]
[355989731,1741773053852,-20000.0,0.00021,2]
[355989732,1741773053862,-1146.65618162,0.00021,2]
[355989733,1741773053872,-189.24991286,0.00021,2]
[355989734,1741773053882,-900.0,0.00021,22]
[355989735,1741773053896,-850.0,0.00021,2]
[355989736,1741773053905,-2000.0,0.00021,4]
[355989737,1741773053914,-152.0,0.00021075,5]
[355989738,1741773053924,-502.455724,0.000211,30]
[355989739,1741773053933,-1050.05,0.000211,14]
[355989740,1741773053943,-152.0,0.00021261,6]
[355989741,1741773053952,-6058.8,0.0002137,2]
[355989742,1741773053961,-113470.0,0.00021384,2]
[355989743,1741773053971,-1100.0,0.0002144,2]
[355989744,1741773053985,-152.0,0.00021447,7]
[355989745,1741773053994,-564.14913153,0.000215,90]
[355989746,1741773054003,-4511.00803677,0.0002152,2]
[355989747,1741773054012,-1035.92,0.00021528,2]
[355989748,1741773054023,-152.0,0.00021633,8]
[355989749,1741773054033,-7262.4616659,0.000217,2]
[355989750,1741773054042,-5434.0,0.000218,2]
[355989751,1741773054051,-152.0,0.00021819,9]
[355989752,1741773054062,-175.309102,0.00021918,2]
[355989753,1741773054072,-175.309102,0.00021918,2]
[355989754,1741773054081,-175.309102,0.00021918,2]
[355989755,1741773054091,-175.309102,0.00021918,2]
[355989756,1741773054101,-175.309102,0.00021918,2]
[355989757,1741773054110,-175.309102,0.00021918,2]
[355989758,1741773054119,-175.309102,0.00021918,2]
[355989759,1741773054128,-175.309102,0.00021918,2]
[355989760,1741773054137,-175.309102,0.00021918,2]
[355989761,1741773054147,-175.309102,0.00021918,2]
[355989762,1741773054156,-175.309102,0.00021918,2]
[355989763,1741773054165,-175.309102,0.00021918,2]
[355989764,1741773054175,-175.309102,0.00021918,2]
[355989765,1741773054185,-175.309102,0.00021918,2]
[355989766,1741773054194,-175.309102,0.00021918,2]
[355989767,1741773054203,-175.309102,0.00021918,2]
[355989768,1741773054213,-175.309102,0.00021918,2]
[355989769,1741773054222,-175.309102,0.00021918,2]
[355989770,1741773054231,-175.309102,0.00021918,2]
[355989771,1741773054240,-175.309098,0.00021918,2]
[355989772,1741773054249,-695.70726336,0.00021964,2]
[355989773,1741773054259,-1028.24202277,0.00021964,4]
[355989774,1741773054268,-150.5,0.0002197,30]
[355989775,1741773054278,-5000.0,0.00021971,3]
[355989776,1741773054287,-150.5,0.0002198,30]
[355989777,1741773054296,-30883.52228631,0.00021986,2]
[355989778,1741773054306,-74057.0,0.0002199,15]
[355989779,1741773054315,-150.5,0.0002199,30]
[355989780,1741773054324,-758.16025633,0.00022,7]
[355989781,1741773054333,-246.01977242,0.00022,2]
[355989782,1741773054343,-500.0,0.00022,2]
[355989783,1741773054352,-10677.68,0.00022,7]
[355989784,1741773054361,-642.27878664,0.00022,2]
[355989785,1741773054371,-1068.98362698,0.00022,14]
[355989786,1741773054381,-900.0,0.00022,23]
[355989787,1741773054390,-2000.0,0.00022,4]
[355989788,1741773054399,-152.0,0.00022005,10]
[355989789,1741773054409,-502.455724,0.00022029,30]
[355989790,1741773054418,-1158.09182237,0.00022087,2]
[355989791,1741773054427,-2098.38901857,0.000221,5]
[355989792,1741773054437,-230.55457884,0.0002211,2]
[355989793,1741773054446,-500.0,0.00022119,120]
[355989794,1741773054455,-511.244916,0.00022119,120]
[355989795,1741773054465,-152.0,0.00022191,11]
[355989796,1741773054475,-152.0,0.00022377,12]
[355989797,1741773054484,-1073.30223999,0.00022466,2]
[355989798,1741773054493,-34014.73830089,0.000225,2]
[355989799,1741773054503,-10677.68,0.000225,7]
[355989800,1741773054513,-1100.0,0.00022536,2]
[355989801,1741773054523,-207.0,0.0002254,8]
[355989802,1741773054532,-152.0,0.00022563,13]
[355989803,1741773054541,-1073.30223999,0.00022575,2]
[355989804,1741773054551,-220.99,0.00022603,2]
[355989805,1741773054560,-1073.30223999,0.00022685,2]
[355989806,1741773054569,-501.79548754,0.0002271,2]
[355989807,1741773054578,-152.0,0.00022749,14]
[355989808,1741773054587,-1073.30223999,0.00022795,2]
[355989809,1741773054599,-2000.0,0.00022862,5]
[355989810,1741773054608,-1073.30223999,0.00022904,2]
[355989811,1741773054618,-152.0,0.00022935,15]
[355989812,1741773054627,-502.455724,0.00022959,30]
[355989813,1741773054638,-10677.68,0.00023,7]
[355989814,1741773054647,-900.0,0.00023,24]
[355989815,1741773054657,-320.0,0.00023,10]
[355989816,1741773054667,-1000.0,0.00023,14]
[355989817,1741773054677,-500.0,0.00023,120]
[355989818,1741773054686,-900.0,0.00023,2]
[355989819,1741773054695,-2000.0,0.00023,4]
[355989820,1741773054705,-368.49075197,0.0002301,2]
[355989821,1741773054715,-1073.30223999,0.00023014,2]
[355989822,1741773054724,-152.0,0.0002312,16]
[355989823,1741773054734,-1073.30223999,0.00023123,2]
[355989824,1741773054743,-50008.08257203,0.000232,2]
[355989825,1741773054752,-157.5982938,0.00023201,2]
[355989826,1741773054762,-569.28376197,0.0002322,2]
[355989827,1741773054771,-1073.30223999,0.00023233,2]
[355989828,1741773054781,-3000.0,0.000233,2]
[355989829,1741773054790,-152.0,0.00023306,17]
[355989830,1741773054801,-264.77054685,0.00023306,5]
[355989831,1741773054811,-1073.30223999,0.00023342,2]
[355989832,1741773054820,-1073.30223999,0.00023452,2]
[355989833,1741773054829,-200.0,0.000235,2]
[355989834,1741773054839,-150.41,0.00023549,2]
[355989835,1741773054848,-1073.30223999,0.00023562,2]
[355989836,1741773054858,-4246.808675,0.00023594,2]
[355989837,1741773054867,-572351.56079378,0.0002361,7]
[355989838,1741773054877,-500.0,0.00023619,120]
[355989839,1741773054886,-1100.0,0.00023632,2]
[355989840,1741773054896,-1073.30223999,0.00023671,2]
[355989841,1741773054905,-1999.69454954,0.000237,2]
[355989842,1741773054914,-1035.92,0.00023746,2]
[355989843,1741773054923,-1737.0,0.000238,5]
[355989844,1741773054933,-1537.86,0.00023836,2]
[355989845,1741773054942,-1053.63998808,0.00023852,2]
[355989846,1741773054951,-150.5,0.0002387,30]
[355989847,1741773054960,-150.5,0.0002388,30]
[355989848,1741773054970,-150.942088,0.00023888,30]
[355989849,1741773054982,-502.455724,0.00023888,30]
[355989850,1741773054991,-150.5,0.0002389,30]
[355989851,1741773055001,-13567.00130816,0.00023899,2]
[355989852,1741773055011,-1000.0,0.000239,8]
[355989853,1741773055022,-796.94591817,0.00023999,30]
[355989854,1741773055031,-2000.0,0.00024,4]
[355989855,1741773055041,-59184.89190666,0.00024,2]
[355989856,1741773055050,-977.94806452,0.00024,2]
[355989857,1741773055060,-80661.31242202,0.00024,2]
[355989858,1741773055070,-10677.68,0.00024,7]
[355989859,1741773055080,-382.49254694,0.00024,6]
[355989860,1741773055089,-24680.85,0.00024,2]
[355989861,1741773055099,-900.0,0.00024,25]
[355989862,1741773055108,-320.7724895,0.00024,40]
[355989863,1741773055118,-780.52940139,0.0002402,2]
[355989864,1741773055127,-9658.10110571,0.00024203,2]
[355989865,1741773055136,-9658.10110569,0.00024203,2]
[355989866,1741773055145,-9658.10110569,0.00024203,2]
[355989867,1741773055154,-404.06097924,0.0002421,2]
[355989868,1741773055163,-3540.55010746,0.0002421,2]
[355989869,1741773055173,-321.7729853,0.0002423,2]
[355989870,1741773055182,-650.0,0.000244,2]
[355989871,1741773055191,-255.0,0.00024658,4]
[355989872,1741773055200,-1000.0,0.00024658,2]
[355989873,1741773055210,-3999.32,0.000247,2]
[355989874,1741773055219,-345.0,0.000247,2]
[355989875,1741773055228,-1100.0,0.00024728,7]
[355989876,1741773055236,-403.30290426,0.00024783,2]
[355989877,1741773055245,-502912.6077874,0.000248,3]
[355989878,1741773055363,-135500.7959436,0.000248,3]
[355989879,1741773055372,-150.942089,0.00024818,30]
[355989880,1741773055382,-150.942088,0.00024818,30]
[355989881,1741773055391,-154.034078,0.00024818,30]
[355989882,1741773055400,-153.003788,0.00024818,30]
[355989883,1741773055409,-154.262733,0.00024818,30]
[355989884,1741773055418,-502.455724,0.00024818,30]
[355989885,1741773055428,-150.5,0.0002488,30]
[355989886,1741773055438,-1910.0716587,0.00024883,2]
[355989887,1741773055447,-150.5,0.0002489,30]
[355989888,1741773055456,-241.98174256,0.000249,2]
[355989889,1741773055466,-588317.584298,0.000249,3]
[355989890,1741773055475,-1006.73968772,0.00024949,2]
[355989891,1741773055484,-1594.60343984,0.00025,2]
[355989892,1741773055494,-254.93093211,0.00025,2]
[355989893,1741773055503,-200.0,0.00025,2]
[355989894,1741773055512,-2914.97339692,0.00025,2]
[355989895,1741773055521,-1019.94543064,0.00025,2]
[355989896,1741773055530,-4220.85546922,0.00025,6]
[355989897,1741773055539,-198.80827354,0.00025,2]
[355989898,1741773055548,-100000.0,0.00025,7]
[355989899,1741773055558,-2592.71595572,0.00025,5]
[355989900,1741773055567,-160.28210605,0.00025,2]
[355989901,1741773055576,-900.0,0.00025,26]
[355989902,1741773055586,-665.04599372,0.00025,30]
[355989903,1741773055595,-11451.63778857,0.00025,30]
[355989904,1741773055604,-500.0,0.00025,120]
[355989905,1741773055613,-162.15438095,0.00025,120]
[355989906,1741773055622,-600.102,0.00025,2]
[355989907,1741773055631,-34061.63173568,0.00025,2]
[355989908,1741773055640,-950.0,0.00025,2]
[355989909,1741773055650,-4000.0,0.00025,2]
[355989910,1741773055659,-2000.0,0.00025,4]
[355989911,1741773055670,-11247.12764916,0.0002501,2]
[355989912,1741773055679,-3236.9137685,0.000251,2]
[355989913,1741773055689,-300.0,0.000251,2]
[355989914,1741773055698,-514.340745,0.00025119,120]
[355989915,1741773055708,-448.34,0.00025225,2]
[355989916,1741773055717,-280.0,0.000253,10]
[355989917,1741773055726,-819.49,0.0002545,30]
[355989918,1741773055736,-1502.5093977,0.000255,5]
[355989919,1741773055745,-220.99,0.00025548,2]
[355989920,1741773055754,-2110.0,0.00025564,2]
[355989921,1741773055763,-150.0,0.00025658,7]
[355989922,1741773055773,-150.0,0.00025675,7]
[355989923,1741773055782,-150.0,0.00025708,7]
[355989924,1741773055791,-157.5982938,0.00025805,2]
[355989925,1741773055800,-25000.0,0.000259,7]
[355989926,1741773055809,-1035.92,0.00025964,2]
[355989927,1741773055818,-132792.67714879,0.0002598,10]
[355989928,1741773055828,-574.3445694,0.0002599,2]
[355989929,1741773055837,-4433.65,0.00026,2]
[355989930,1741773055846,-4326.92706099,0.00026,2]
[355989931,1741773055855,-2000.0,0.00026,2]
[355989932,1741773055865,-900.0,0.00026,27]
[355989933,1741773055874,-1700.0,0.00026,60]
[355989934,1741773055883,-900.0,0.00026,15]
[355989935,1741773055892,-3000.0,0.00026,2]
[355989936,1741773055901,-2000.0,0.00026,4]
[355989937,1741773055910,-2110.0,0.00026064,2]
[355989938,1741773055919,-513.767961,0.000263,2]
[355989939,1741773055928,-1100.0,0.00026372,7]
[355989940,1741773055938,-26275.79224121,0.000264,2]
[355989941,1741773055948,-2000.0,0.000265,7]
[355989942,1741773055957,-500.0,0.00026563,120]
[355989943,1741773055966,-2110.0,0.00026564,2]
[355989944,1741773055977,-751.2,0.00026849,2]
[355989945,1741773055986,-762.79,0.00026849,2]
[355989946,1741773055995,-248.8,0.00026849,2]
[355989947,1741773056004,-800.0,0.00026986,120]
[355989948,1741773056013,-2000.0,0.00027,4]
[355989949,1741773056022,-5297.3757485,0.00027,7]
[355989950,1741773056032,-250.0,0.00027,2]
[355989951,1741773056040,-990.54730748,0.00027,2]
[355989952,1741773056050,-9055.1956042,0.00027,2]
[355989953,1741773056059,-900.0,0.00027,28]
[355989954,1741773056068,-160.95603575,0.00027,3]
[355989955,1741773056077,-500.0,0.00027,120]
[355989956,1741773056086,-2000.0,0.00027,2]
[355989957,1741773056095,-1000.0,0.00027,2]
[355989958,1741773056104,-328.93861043,0.00027,30]
[355989959,1741773056113,-2136.005008,0.0002701,2]
[355989960,1741773056122,-2110.0,0.00027064,2]
[355989961,1741773056131,-3515.17,0.00027123,2]
[355989962,1741773056141,-500.0,0.000273,2]
[355989963,1741773056150,-2000.0,0.00027342,30]
[355989964,1741773056159,-1000.0,0.00027342,30]
[355989965,1741773056302,-1000.0,0.00027397,30]
[355989966,1741773056317,-1000.0,0.00027397,30]
[355989967,1741773056327,-444.15566708,0.00027397,30]
[355989968,1741773056339,-555.84433292,0.00027397,30]
[355989969,1741773056349,-1000.0,0.00027397,30]
[355989970,1741773056358,-1000.0,0.00027397,30]
[355989971,1741773056367,-285.53283374,0.00027397,30]
[355989972,1741773056378,-714.46716626,0.00027397,30]
[355989973,1741773056387,-1000.0,0.00027397,30]
[355989974,1741773056397,-261.85125366,0.00027397,8]
[355989975,1741773056406,-352.23,0.00027397,2]
[355989976,1741773056419,-300.0,0.00027397,2]
[355989977,1741773056429,-407.78982684,0.00027397,7]
[355989978,1741773056441,-92.21017316,0.00027397,7]
[355989979,1741773056451,-518.82607639,0.00027397,7]
[355989980,1741773056460,-500.0,0.00027397,2]
[355989981,1741773056469,-487.27315157,0.00027397,2]
[355989982,1741773056502,-1023.05,0.000137,2]
[355989983,1741773056513,-176.95,0.000137,2]
[355989984,1741773056523,-767.77075747,0.000192,2]
[355989985,1741773056535,-432.22924253,0.000192,2]
[355989986,1741773056544,-194.59730767,0.00020644,2]
[355989987,1741773056555,-1140.77387521,0.00020644,2]
[355989988,1741773056564,-12.72684843,0.00027397,2]
[355989989,1741773056574,-500.0,0.00027397,2]
[355989990,1741773056584,-500.0,0.00027397,2]
[355989991,1741773056594,-500.0,0.00027397,2]
[355989992,1741773056604,-500.0,0.00027397,2]
[355989993,1741773056613,-500.0,0.00027397,2]
[355989994,1741773056623,-500.0,0.00027397,2]
[355989995,1741773056633,-500.0,0.00027397,2]
[355989996,1741773056643,-500.0,0.00027397,2]
[355989997,1741773056652,-509.94430189,0.00027397,2]
[355989998,1741773056662,-494.97,0.00027397,2]
[355989999,1741773056672,-443.58028588,0.00027397,7]
[355990000,1741773056684,-56.41971412,0.00027397,7]
[355990001,1741773056694,-500.0,0.00027397,7]
[355990002,1741773056704,-500.0,0.00027397,7]
[355990003,1741773056714,-500.0,0.00027397,7]
[355990004,1741773056724,-500.0,0.00027397,7]
[355990005,1741773056733,-500.0,0.00027397,7]
[355990006,1741773056743,-500.0,0.00027397,7]
[355990007,1741773056752,-500.0,0.00027397,7]
[355990008,1741773056762,-500.0,0.00027397,7]
[355990009,1741773056771,-500.0,0.00027397,7]
[355990010,1741773056781,-500.0,0.00027397,7]
[355990011,1741773056791,-500.0,0.00027397,7]
[355990012,1741773056801,-15.23057504,0.00027397,7]
[355990013,1741773056816,-484.76942496,0.00027397,7]
[355990014,1741773056826,-500.0,0.00027397,7]
[355990015,1741773056836,-500.0,0.00027397,7]
[355990016,1741773056847,-500.0,0.00027397,7]
[355990017,1741773056857,-500.0,0.00027397,7]
[355990018,1741773056867,-500.0,0.00027397,7]
[355990019,1741773056877,-500.0,0.00027397,7]
[355990020,1741773056886,-500.0,0.00027397,7]
[355990021,1741773056896,-151.0,0.00027397,7]
[355990022,1741773056906,-151.0,0.00027397,7]
[355990023,1741773056915,-151.0,0.00027397,7]
[355990024,1741773056926,-151.0,0.00027397,7]
[355990025,1741773056936,-151.0,0.00027397,7]
[355990026,1741773056945,-151.0,0.00027397,7]
[355990027,1741773056955,-151.0,0.00027397,7]
[355990028,1741773056966,-151.0,0.00027397,7]
[355990029,1741773056980,-241.083471,0.00027397,7]
[355990030,1741773056991,-172.01,0.00027397,10]
[355990031,1741773057002,-150.0,0.00027397,5]
[355990032,1741773057013,-500.0,0.000274,120]
[355990033,1741773057023,-12.911477,0.00027479,30]
[355990034,1741773057035,-1987.088523,0.00027479,30]
[355990035,1741773057045,-1000.0,0.00027479,30]
[355990036,1741773057055,-192.35503882,0.000275,2]
[355990037,1741773057065,-150.0,0.00027555,2]
[355990038,1741773057075,-2110.0,0.00027564,2]
[355990039,1741773057085,-202.0,0.0002759,30]
[355990040,1741773057095,-2000.0,0.00027616,30]
[355990041,1741773057105,-1000.0,0.00027616,30]
[355990042,1741773057114,-150.0,0.0002764,2]
[355990043,1741773057123,-352.23,0.00027671,2]
[355990044,1741773057133,-300.0,0.00027671,2]
[355990045,1741773057142,-500.0,0.00027671,7]
[355990046,1741773057152,-150.0,0.000277,2]
[355990047,1741773057162,-2000.0,0.00027753,30]
[355990048,1741773057173,-1000.0,0.00027753,30]
[355990049,1741773057183,-150.0,0.0002776,2]
[355990050,1741773057193,-150.0,0.00027763,2]
[355990051,1741773057202,-150.0,0.00027773,2]
[355990052,1741773057212,-150.0,0.0002781,2]
[355990053,1741773057221,-150.0,0.00027813,2]
[355990054,1741773057231,-391.0,0.0002783,15]
[355990055,1741773057240,-150.0,0.00027879,2]
[355990056,1741773057249,-150.0,0.00027882,2]
[355990057,1741773057259,-2000.0,0.0002789,30]
[355990058,1741773057269,-1000.0,0.0002789,30]
[355990059,1741773057278,-150.0,0.000279,4]
[355990060,1741773057287,-22928.6387056,0.000279,10]
[355990061,1741773057299,-842.33795605,0.000279,10]
[355990062,1741773057310,-14203.25179273,0.000279,10]
[355990063,1741773057322,-157247.46735162,0.000279,10]
[355990064,1741773057330,-1350.0,0.00027913,16]
[355990065,1741773057340,-150.0,0.00027925,2]
[355990066,1741773057349,-150.0,0.00027926,2]
[355990067,1741773057358,-1094.02324522,0.00027944,2]
[355990068,1741773057368,-1034.61851969,0.00027944,2]
[355990069,1741773057377,-1071.35846029,0.00027945,2]
[355990070,1741773057386,-1905.48364841,0.00027945,2]
[355990071,1741773057395,-352.23,0.00027945,2]
[355990072,1741773057404,-300.0,0.00027945,2]
[355990073,1741773057414,-500.0,0.00027945,7]
[355990074,1741773057423,-174.1,0.00027945,91]
[355990075,1741773057432,-250.0,0.00027945,5]
[355990076,1741773057441,-164.90329,0.00027947,30]
[355990077,1741773057450,-150.0,0.00027973,2]
[355990078,1741773057460,-150.0,0.00027983,2]
[355990079,1741773057469,-163.38,0.0002799,30]
[355990080,1741773057478,-150.0,0.00027992,2]
[355990081,1741773057487,-500.0,0.00027993,30]
[355990082,1741773057496,-500.0,0.00027993,30]
[355990083,1741773057505,-500.0,0.00027993,30]
[355990084,1741773057514,-500.0,0.00027993,30]
[355990085,1741773057523,-500.0,0.00027993,30]
[355990086,1741773057533,-500.0,0.00027993,30]
[355990087,1741773057542,-543.3159791,0.00027993,30]
[355990088,1741773057551,-150.0,0.00027995,2]
[355990089,1741773057560,-24888.34090469,0.00028,2]
[355990090,1741773057569,-497.7668181,0.00028,2]
[355990091,1741773057579,-516.70503885,0.00028,2]
[355990092,1741773057588,-1600.0,0.00028,80]
[355990093,1741773057597,-500.0,0.00028,120]
[355990094,1741773057607,-3808.73,0.00028,2]
[355990095,1741773057616,-2000.0,0.00028,4]
[355990096,1741773057625,-900.0,0.00028,29]
[355990097,1741773057635,-1100.0,0.00028016,7]